bitfinex/quotes_BTCUSD_20250219
["timestamp","ask_amount","ask_price","bid_price","bid_amount"]
[1739977034873,0.01584402,96069.0,96051.0,0.01049729]
[1739977035079,0.01584402,96069.0,96050.0,0.01049906]
[1739977035287,0.01584402,96069.0,96050.0,0.11300271]
[1739977035507,0.01184402,96069.0,96052.0,0.01049552]
[1739977035712,0.156163,96054.0,96051.0,0.08659729]
[1739977035924,0.01384402,96069.0,96051.0,0.08659729]
[1739977035925,0.156165,96052.0,96051.0,0.08659729]
[1739977036129,0.156165,96052.0,96051.0,0.0761]
[1739977036338,0.208217,96054.0,96042.0,0.0797]
[1739977036547,0.15618,96043.0,96042.0,0.0797]
[1739977037317,0.17249949,96043.0,96042.0,0.0797]
[1739977038060,0.17249949,96043.0,96042.0,0.0837]
[1739977038523,0.17249949,96043.0,96042.0,0.09421324]
[1739977038700,0.001,96043.0,96042.0,0.09421324]
[1739977038903,0.15718,96043.0,96042.0,0.09421324]
[1739977039284,0.15718,96043.0,96042.0,0.0837]
[1739977039285,0.001,96043.0,96042.0,0.0837]
[1739977039484,0.001,96043.0,96042.0,0.239881]
[1739977039689,0.001,96043.0,96042.0,0.09421324]
[1739977040104,0.001,96043.0,96042.0,0.01451324]
[1739977040668,0.001,96043.0,96042.0,0.17069424]
[1739977040801,0.001,96043.0,96042.0,0.01451324]
[1739977041018,0.001,96043.0,96042.0,0.17069424]
[1739977041440,0.001,96043.0,96042.0,0.01451324]
[1739977041757,0.001,96043.0,96042.0,0.17069424]
[1739977041967,0.15718,96043.0,96042.0,0.01451324]
[1739977042376,0.001,96043.0,96042.0,0.004]
[1739977042588,0.001,96043.0,96042.0,0.01451324]
[1739977042793,0.001,96043.0,96042.0,0.004]
[1739977042999,0.15718,96043.0,96042.0,0.01451324]
[1739977043209,0.15718,96043.0,96042.0,0.004]
[1739977043407,0.15718,96043.0,96042.0,0.01451324]
[1739977043613,0.15718,96043.0,96042.0,0.004]
[1739977045280,0.15718,96043.0,96042.0,0.004426]
[1739977045484,0.15618,96043.0,96042.0,0.004426]
[1739977045710,0.15618,96043.0,96042.0,0.000426]
[1739977045932,0.15718,96043.0,96042.0,0.000426]
[1739977046381,0.15618,96043.0,96042.0,0.000426]
[1739977046889,0.15695817,96043.0,96042.0,0.000426]
[1739977047129,0.16640471,96043.0,96042.0,0.000426]
[1739977047337,0.39350411,96043.0,96042.0,0.000426]
[1739977047551,0.40904521,96043.0,96042.0,0.000426]
[1739977047766,0.40904521,96043.0,96041.0,0.0004261]
[1739977047767,0.306181,96042.0,96041.0,1e-07]
[1739977047983,0.31643281,96042.0,96041.0,1e-07]
[1739977048455,0.78465489,96042.0,96041.0,1e-07]
[1739977048654,0.85166055,96042.0,96041.0,1e-07]
[1739977048855,0.76465489,96042.0,96041.0,1e-07]
[1739977049464,0.8041197,96042.0,96041.0,1e-07]
[1739977049669,0.8241197,96042.0,96041.0,1e-07]
[1739977049798,0.156248,96001.0,95991.0,0.0753]
[1739977050008,0.15,96027.0,95991.0,0.0753]
[1739977050238,0.15,96023.0,96000.0,0.12598773]
[1739977050441,0.156248,96001.0,96000.0,0.1154]
[1739977050639,0.01632506,96021.0,96000.0,0.1154]
[1739977050813,0.15,96018.0,96000.0,0.12598773]
[1739977051014,0.156241,96006.0,96000.0,0.1154]
[1739977051278,0.01204123,96017.0,96001.0,0.01058595]
[1739977051659,0.208318,96007.0,96001.0,0.01058595]
[1739977051859,0.01632487,96014.0,96000.0,0.1154]
[1739977052085,0.208305,96013.0,96001.0,0.01058595]
[1739977052444,0.208305,96013.0,96000.0,0.1154]
[1739977052671,0.156245,96003.0,96000.0,0.1154]
[1739977052873,0.01632487,96014.0,96000.0,0.1154]
[1739977053075,0.01632487,96014.0,96001.0,0.01058595]
[1739977053296,0.156248,96001.0,96000.0,0.1154]
[1739977053946,0.15697895,96003.0,96000.0,0.1144]
[1739977054107,0.156248,96001.0,96000.0,0.1144]
[1739977054287,0.156248,96001.0,96000.0,0.12498773]
[1739977054688,0.17144476,96001.0,96000.0,0.12498773]
[1739977056100,0.1839471,96001.0,96000.0,0.12498773]
[1739977056753,0.20027381,96001.0,96000.0,0.12498773]
[1739977057203,0.20027381,96001.0,96000.0,0.12541383]
[1739977057416,0.18777147,96001.0,96000.0,0.12541383]
[1739977057846,0.20027381,96001.0,96000.0,0.1148261]
[1739977058458,0.18777147,96001.0,96000.0,0.1148261]
[1739977058681,0.18777147,96001.0,96000.0,0.12541383]
[1739977059502,0.18977147,96001.0,96000.0,0.12541383]
[1739977059907,0.18877147,96001.0,96000.0,0.12541383]
[1739977060323,0.18977147,96001.0,96000.0,0.12541383]
[1739977060498,0.18877147,96001.0,96000.0,0.12541383]
[1739977060905,0.18777147,96001.0,96000.0,0.12541383]
[1739977061335,0.18877147,96001.0,96000.0,0.12541383]
[1739977061878,0.03252347,96001.0,96000.0,0.12541383]
[1739977062086,0.18877147,96001.0,96000.0,0.12541383]
[1739977062532,0.18977147,96001.0,96000.0,0.12541383]
[1739977062730,0.18777147,96001.0,96000.0,0.1148261]
[1739977062854,0.18877147,96001.0,96000.0,0.1148261]
[1739977063047,0.18977147,96001.0,96000.0,0.1148261]
[1739977063303,0.18877147,96001.0,96000.0,0.1148261]
[1739977063541,0.18977147,96001.0,96000.0,0.1148261]
[1739977063666,0.17344476,96001.0,96000.0,0.1148261]
[1739977063889,0.01719676,96001.0,96000.0,0.1148261]
[1739977064139,0.00792887,96020.0,96000.0,0.1148261]
[1739977064312,0.00787945,96022.0,96001.0,0.0829]
[1739977064492,0.208289,96021.0,96002.0,0.049]
[1739977064688,0.208268,96031.0,96002.0,0.05958418]
[1739977064887,0.156232,96011.0,96002.0,0.05958418]
[1739977065109,0.156245,96003.0,96002.0,0.05958418]
[1739977065774,0.208309,96011.0,96002.0,0.05958418]
[1739977065979,0.30273772,96016.0,96002.0,0.049]
[1739977066155,0.22034123,96015.0,96003.0,0.0105824]
[1739977066369,0.22034123,96015.0,96002.0,0.049]
[1739977066370,0.156245,96003.0,96002.0,0.049]
[1739977066773,0.01204123,96015.0,96001.0,0.0819]
[1739977067028,0.0163259,96013.0,96002.0,0.01058418]
[1739977067242,0.156232,96011.0,96002.0,0.01058418]
[1739977067447,0.0163259,96013.0,96002.0,0.01058418]
[1739977068069,0.0163259,96013.0,96002.0,0.01258418]
[1739977068513,0.0163259,96013.0,96002.0,0.01458418]
[1739977068691,0.0163259,96013.0,96001.0,0.0819]
[1739977068841,0.0163259,96013.0,96004.0,0.208324]
[1739977069070,0.0163259,96013.0,96002.0,0.11508783]
[1739977069266,0.0163259,96013.0,96005.0,0.01057886]
[1739977069639,0.0163259,96013.0,96004.0,0.156243]
[1739977069774,0.0163259,96013.0,96006.0,0.01057708]
[1739977070118,0.0163259,96013.0,96004.0,0.156243]
[1739977070374,0.0163259,96013.0,96002.0,0.10350365]
[1739977070375,0.0163259,96013.0,96007.0,0.01057531]
[1739977070583,0.0163259,96013.0,96001.0,0.0823261]
[1739977070788,0.156246,96002.0,96001.0,0.0823261]
[1739977071005,0.156246,96002.0,96001.0,0.0014261]
[1739977071217,0.15702417,96002.0,96001.0,0.0014261]
[1739977071645,0.17257303,96002.0,96001.0,0.0014261]
[1739977072245,0.17257303,96002.0,96001.0,0.0004261]
[1739977072368,0.17257303,96002.0,96001.0,0.0014261]
[1739977072817,0.18502111,96002.0,96001.0,0.0004261]
[1739977073232,0.18502111,96002.0,96001.0,0.0024261]
[1739977073458,0.17257303,96002.0,96001.0,0.0024261]
[1739977073640,0.156246,96002.0,96001.0,0.0024261]
[1739977074471,0.156246,96002.0,96001.0,0.0014261]
[1739977074676,0.156246,96002.0,96001.0,0.0024261]
[1739977074873,0.156246,96002.0,96001.0,0.0014261]
[1739977075062,0.156246,96002.0,96001.0,0.0004261]
[1739977075294,0.10042192,96004.0,96001.0,0.0004261]
[1739977075578,0.156246,96002.0,96001.0,0.0004261]
[1739977075786,0.20832,96006.0,96001.0,0.0004261]
[1739977075990,0.01233957,96005.0,96001.0,0.0004261]
[1739977076399,0.156246,96002.0,96001.0,0.0004261]
[1739977078260,0.156246,96002.0,96001.0,0.0014261]
[1739977078459,0.15,96022.0,96001.0,0.0004261]
[1739977078662,0.01632693,96006.0,96001.0,0.0004261]
[1739977078908,0.156245,96003.0,96001.0,0.0004261]
[1739977079326,0.001,96004.0,96001.0,0.0004261]
[1739977079656,0.001,96004.0,96002.0,0.075]
[1739977079867,0.01632655,96006.0,96002.0,0.075]
[1739977080072,0.01932655,96006.0,96002.0,0.075]
[1739977080478,0.01732655,96006.0,96002.0,0.075]
[1739977080591,0.156241,96005.0,96002.0,0.075]
[1739977080789,0.01732655,96006.0,96002.0,0.076]
[1739977081218,0.001,96006.0,96002.0,0.076]
[1739977081419,0.00774084,96034.0,96002.0,0.076]
[1739977081420,0.156234,96010.0,96002.0,0.076]
[1739977081628,0.156232,96011.0,96002.0,0.076]
[1739977081825,0.01632563,96014.0,96002.0,0.076]
[1739977082036,0.01632563,96014.0,96004.0,0.156243]
[1739977082233,0.01632563,96014.0,96002.0,0.076]
[1739977082475,0.0008526,96013.0,96003.0,0.14954515]
[1739977082691,0.0008526,96013.0,96012.0,0.23893]
[1739977082916,0.0008526,96013.0,96012.0,0.3559745]
[1739977083318,0.00063745,96013.0,96012.0,0.3559745]
[1739977084269,0.00163745,96013.0,96012.0,0.37761893]
[1739977085665,0.00263745,96013.0,96012.0,0.38161893]
[1739977086078,0.00163745,96013.0,96012.0,0.38061893]
[1739977086297,0.00163745,96013.0,96012.0,0.7002542]
[1739977086496,0.00263745,96013.0,96012.0,0.7042542]
[1739977086872,0.00163745,96013.0,96012.0,0.7002542]
[1739977087080,0.00063745,96013.0,96012.0,0.68171335]
[1739977087272,0.00163745,96013.0,96012.0,0.68571335]
[1739977088060,0.01473301,96032.0,96012.0,0.68571335]
[1739977088061,0.156207,96027.0,96015.0,0.156225]
[1739977088272,0.156207,96027.0,96016.0,0.25872565]
[1739977088487,0.156209,96025.0,96016.0,0.11206299]
[1739977088694,0.15,96043.0,96016.0,0.01055934]
[1739977088974,0.156222,96017.0,96016.0,0.00955934]
[1739977089234,0.156222,96017.0,96016.0,0.00855934]
[1739977089424,0.208282,96024.0,96012.0,0.31963527]
[1739977089633,0.156222,96017.0,96016.0,0.01739268]
[1739977089837,0.156222,96017.0,96016.0,0.007]
[1739977089957,0.156222,96017.0,96016.0,0.01039268]
[1739977090178,0.157222,96017.0,96016.0,0.004]
[1739977090386,0.158222,96017.0,96016.0,0.007]
[1739977092321,0.157222,96017.0,96016.0,0.004]
[1739977092498,0.01632431,96023.0,96006.0,0.15624]
[1739977092694,0.156222,96017.0,96016.0,0.004]
[1739977092914,0.156222,96017.0,96016.0,0.007]
[1739977093109,0.01632431,96023.0,96016.0,0.003]
[1739977093310,0.01632431,96023.0,96005.0,0.0783]
[1739977093507,0.01932594,96017.0,96016.0,0.004]
[1739977094882,0.17554794,96017.0,96005.0,0.0783]
[1739977095092,0.156222,96017.0,96016.0,0.01039268]
[1739977095267,0.156222,96017.0,96016.0,0.003]
[1739977096156,0.15,96031.0,96005.0,0.0823]
[1739977096359,0.156222,96017.0,96016.0,0.01339268]
[1739977096563,0.156245,96003.0,96002.0,0.0004262]
[1739977097538,0.156235,96009.0,96002.0,0.0004262]
[1739977097660,0.208251,96038.0,96002.0,0.0004262]
[1739977097867,0.01263442,96030.0,96002.0,0.0004262]
[1739977098075,0.208272,96028.0,96002.0,0.0004262]
[1739977098301,0.156237,96008.0,96002.0,0.0004262]
[1739977098505,0.002,96003.0,96002.0,0.0104262]
[1739977098828,0.001,96003.0,96002.0,0.0044262]
[1739977099032,0.208317,96008.0,96002.0,0.0004262]
[1739977099276,0.156241,96005.0,96002.0,0.0004262]
[1739977099627,0.15624,96007.0,96002.0,0.0004262]
[1739977099958,0.001,96003.0,96002.0,0.0104262]
[1739977100155,0.002,96003.0,96002.0,0.0044262]
[1739977100772,0.158245,96003.0,96002.0,0.0044262]
[1739977101285,0.157245,96003.0,96002.0,0.0004262]
[1739977101721,0.157245,96003.0,96002.0,0.0044262]
[1739977101925,0.001,96003.0,96002.0,0.0104262]
[1739977102074,0.156243,96004.0,96002.0,0.0064262]
[1739977102281,0.156241,96006.0,96002.0,0.0004262]
[1739977102494,0.002,96003.0,96002.0,0.0104262]
[1739977102822,0.156245,96003.0,96002.0,0.0044262]
[1739977103023,0.156245,96003.0,96002.0,0.0004262]
[1739977103164,0.001,96003.0,96002.0,0.0064262]
[1739977103366,0.001,96003.0,96002.0,0.0104262]
[1739977103567,0.157245,96003.0,96002.0,0.0104262]
[1739977103770,0.001,96003.0,96002.0,0.0104262]
[1739977104452,0.001,96004.0,96002.0,0.0044262]
[1739977104771,0.001,96003.0,96002.0,0.0054262]
[1739977104975,0.156245,96003.0,96002.0,0.0054262]
[1739977105188,0.156245,96003.0,96002.0,0.0104262]
[1739977105978,0.156245,96003.0,96002.0,0.0054262]
[1739977106155,0.156245,96003.0,96002.0,0.0004262]
[1739977106357,0.156245,96003.0,96002.0,0.0084262]
[1739977107216,0.17558719,96003.0,96002.0,0.0084262]
[1739977108006,0.15,96006.0,96002.0,0.0084262]
[1739977108236,0.156245,96003.0,96002.0,0.0084262]
[1739977108886,0.156245,96003.0,96002.0,0.0044262]
[1739977109245,0.156245,96003.0,96002.0,0.0074262]
[1739977109744,0.156245,96003.0,96002.0,0.0044262]
[1739977110172,0.156245,96003.0,96002.0,0.0084262]
[1739977110401,0.01632692,96007.0,96002.0,0.0084262]
[1739977110834,0.01632692,96007.0,96003.0,0.00104156]
[1739977111037,0.01632692,96007.0,96002.0,0.0044262]
[1739977111255,0.01632692,96007.0,96002.0,0.0074262]
[1739977111458,0.0008508,96016.0,96015.0,0.156225]
[1739977111664,0.0008508,96016.0,96015.0,0.34037]
[1739977111910,0.0008508,96016.0,96015.0,0.3538695]
[1739977112545,0.0008508,96016.0,96015.0,0.5038695]
[1739977113575,0.0008508,96016.0,96015.0,0.18310365]
[1739977113957,0.0008508,96016.0,96015.0,0.33932865]
[1739977114620,0.0028508,96016.0,96015.0,0.35132865]
[1739977115023,0.0008508,96016.0,96015.0,0.33932865]
[1739977115239,0.0008508,96016.0,96014.0,0.00856]
[1739977115443,0.0018508,96016.0,96015.0,0.012]
[1739977115662,0.0008508,96016.0,96015.0,0.11054505]
[1739977115862,0.0008508,96016.0,96015.0,0.10250365]
[1739977116065,0.0018508,96016.0,96015.0,0.11554496]
[1739977116268,0.0018508,96016.0,96015.0,0.11054496]
[1739977116477,0.0028508,96016.0,96015.0,0.1998445]
[1739977116685,0.0028508,96016.0,96015.0,0.3560695]
[1739977117516,0.0028508,96016.0,96015.0,0.3490695]
[1739977117720,0.0008508,96016.0,96015.0,0.3490695]
[1739977117968,0.0018508,96016.0,96015.0,0.3560695]
[1739977118173,0.0028508,96016.0,96015.0,0.3610695]
[1739977118373,0.0018508,96016.0,96015.0,0.3540695]
[1739977118777,0.0028508,96016.0,96015.0,0.3610695]
[1739977122174,0.0018508,96016.0,96015.0,0.3540695]
[1739977122354,0.0008508,96016.0,96015.0,0.3490695]
[1739977122511,0.0018508,96016.0,96015.0,0.3560695]
[1739977122716,0.0028508,96016.0,96015.0,0.3610695]
[1739977123079,0.0018508,96016.0,96015.0,0.34152865]
[1739977123698,0.0018508,96016.0,96015.0,0.35000865]
[1739977124414,0.0008508,96016.0,96015.0,0.34300865]
[1739977124639,0.0008508,96016.0,96015.0,0.35000865]
[1739977124837,0.0008508,96016.0,96015.0,1.42828477]
[1739977125040,0.0008508,96016.0,96015.0,1.44128477]
[1739977125540,0.0008508,96016.0,96015.0,1.44828477]
[1739977125741,0.0008508,96016.0,96015.0,1.45528477]
[1739977125936,0.0008522,96041.0,96040.0,0.44842485]
[1739977126174,0.05800178,96094.0,96040.0,1.11763977]
[1739977126369,0.0186521,96065.0,96041.0,0.00856]
[1739977126581,0.00077817,96064.0,96041.0,0.00856]
[1739977126785,0.156158,96056.0,96041.0,0.00856]
[1739977126994,0.20897617,96062.0,96043.0,0.156178]
[1739977127164,0.00077817,96062.0,96040.0,0.50363892]
[1739977127402,0.156159,96056.0,96045.0,0.156176]
[1739977127563,0.00077817,96062.0,96042.0,0.208242]
[1739977127775,0.156159,96056.0,96044.0,0.156177]
[1739977127954,0.00077817,96062.0,96041.0,0.00856]
[1739977128155,0.156169,96050.0,96041.0,0.00856]
[1739977128340,0.0107369,96061.0,96041.0,0.00856]
[1739977128532,0.03006581,96061.0,96041.0,0.00856]
[1739977128742,0.208205,96059.0,96042.0,0.208242]
[1739977128965,0.156159,96056.0,96042.0,0.156181]
[1739977129186,0.01932891,96061.0,96043.0,0.00104113]
[1739977129390,0.01932891,96061.0,96043.0,0.20824]
[1739977129592,0.01932891,96061.0,96050.0,0.156168]
[1739977129807,0.01932891,96061.0,96060.0,0.156152]
[1739977130311,0.01819884,96065.0,96060.0,0.156152]
[1739977130312,0.15612,96080.0,96060.0,0.208201]
[1739977130516,0.20816,96080.0,96055.0,0.0482]
[1739977130770,0.156134,96072.0,96056.0,0.10250365]
[1739977130971,0.01631652,96077.0,96061.0,0.15615]
[1739977131197,0.20817,96076.0,96056.0,0.10250365]
[1739977131400,0.01631652,96077.0,96057.0,0.0010409]
[1739977131560,0.01871525,96076.0,96060.0,0.156151]
[1739977131776,0.156133,96072.0,96056.0,0.10250365]
[1739977131951,0.208172,96075.0,96056.0,0.10250365]
[1739977131952,0.208168,96076.0,96056.0,0.10250365]
[1739977132156,0.01631652,96077.0,96067.0,0.15614]
[1739977132376,0.01845148,96076.0,96057.0,0.00104089]
[1739977132719,0.01631652,96077.0,96064.0,0.156144]
[1739977133043,0.156129,96074.0,96064.0,0.156144]
[1739977133271,0.156128,96075.0,96064.0,0.156144]
[1739977133685,0.0008518,96088.0,96058.0,0.10250365]
[1739977133885,0.01887531,96077.0,96062.0,0.208197]
[1739977134085,0.20816,96080.0,96064.0,0.156145]
[1739977134331,0.00959904,96086.0,96057.0,0.32063527]
[1739977134463,0.01840738,96080.0,96057.0,0.57929592]
[1739977134669,0.156139,96068.0,96058.0,0.01031822]
[1739977134872,0.156135,96071.0,96058.0,0.01031822]
[1739977135071,0.156136,96070.0,96058.0,0.01031822]
[1739977135272,0.01883632,96080.0,96064.0,0.002]
[1739977135470,0.156138,96069.0,96057.0,0.10250365]
[1739977135736,0.00959904,96086.0,96065.0,0.01030582]
[1739977135900,0.156113,96084.0,96066.0,0.00104089]
[1739977136109,0.01874904,96086.0,96070.0,0.12181857]
[1739977136431,0.156118,96081.0,96071.0,0.01029519]
[1739977136763,0.156117,96082.0,96064.0,0.0010408]
[1739977136910,0.156117,96082.0,96065.0,0.10250365]
[1739977137271,0.156118,96081.0,96066.0,0.0010408]
[1739977137481,0.03483244,96086.0,96070.0,0.12181857]
[1739977137689,0.19094244,96086.0,96071.0,0.10250365]
[1739977137897,0.01631365,96086.0,96071.0,0.11279884]
[1739977138331,0.16831365,96086.0,96071.0,0.11279884]
[1739977138535,0.03695314,96086.0,96071.0,0.11279884]
[1739977138739,0.03695314,96086.0,96072.0,0.156132]
[1739977138944,0.20814,96089.0,96073.0,0.10250365]
[1739977139144,0.20814,96089.0,96073.0,0.11279529]
[1739977139303,0.156108,96088.0,96073.0,0.11279529]
[1739977139501,0.156108,96087.0,96073.0,0.11279529]
[1739977140134,0.208136,96091.0,96073.0,0.11279529]
[1739977140352,0.208142,96089.0,96073.0,0.11279529]
[1739977140560,0.01853516,96091.0,96079.0,0.12181857]
[1739977140769,0.01853516,96091.0,96074.0,0.208171]
[1739977140914,0.208129,96094.0,96080.0,0.01027924]
[1739977141117,0.208152,96084.0,96075.0,0.10250365]
[1739977141341,0.01631315,96095.0,96075.0,0.10250365]
[1739977141342,0.208131,96093.0,96081.0,0.01027747]
[1739977141546,0.15613,96074.0,96070.0,0.00844]
[1739977141743,0.01631315,96095.0,96071.0,0.01029519]
[1739977141951,0.01631315,96095.0,96061.0,0.00844]
[1739977141952,0.208142,96089.0,96061.0,0.00844]
[1739977142190,0.156126,96077.0,96062.0,0.11281478]
[1739977142384,0.208155,96082.0,96075.0,0.001]
[1739977142385,0.208163,96079.0,96075.0,0.001]
[1739977142597,0.0008506,96086.0,96075.0,0.001]
[1739977142808,0.156123,96078.0,96076.0,0.01028633]
[1739977143011,0.0008506,96086.0,96075.0,0.001]
[1739977143228,0.208149,96085.0,96077.0,0.01028456]
[1739977143519,0.208149,96085.0,96075.0,0.001]
[1739977143520,0.0008506,96086.0,96075.0,0.001]
[1739977143722,0.156123,96078.0,96062.0,0.10250365]
[1739977144151,0.208152,96084.0,96063.0,0.01030936]
[1739977144350,0.0008506,96086.0,96064.0,0.10250365]
[1739977144555,0.0008506,96086.0,96065.0,0.01030582]
[1739977144791,0.0008506,96086.0,96066.0,0.10250365]
[1739977145003,0.15613,96074.0,96066.0,0.01030404]
[1739977145214,0.15077817,96084.0,96055.0,0.0482]
[1739977145426,0.00765171,96070.0,96046.0,0.0831]
[1739977145626,0.306144,96065.0,96064.0,0.001]
[1739977145830,0.156183,96041.0,96040.0,0.0004253]
[1739977147238,0.15696117,96041.0,96040.0,0.0004253]
[1739977148914,0.15696117,96041.0,96040.0,0.0014253]
[1739977149327,0.156183,96041.0,96040.0,0.0014253]
[1739977149749,0.15696117,96041.0,96040.0,0.0014253]
[1739977150168,0.52127917,96041.0,96040.0,0.0014253]
[1739977150391,0.68183411,96041.0,96040.0,0.0014253]
[1739977150606,1.00603411,96041.0,96040.0,0.0014253]
[1739977150810,1.00603411,96041.0,96040.0,0.0034253]
[1739977151009,0.15,96040.0,96004.0,0.0466]
[1739977151217,0.15,96040.0,96002.0,0.3103062]
[1739977151218,0.156239,96007.0,96006.0,0.00958891]
[1739977151630,0.306239,96007.0,96006.0,0.00958891]
[1739977151835,0.15624,96006.0,96002.0,0.0004262]
[1739977152334,0.30624,96006.0,96002.0,0.0004262]
[1739977152574,0.32552972,96006.0,96002.0,0.0004262]
[1739977152988,0.34185469,96006.0,96002.0,0.0004262]
[1739977153394,0.35508577,96006.0,96002.0,0.0004262]
[1739977153616,0.3387608,96006.0,96002.0,0.0004262]
[1739977153834,0.35687288,96006.0,96002.0,0.0004262]
[1739977154036,0.38768969,96006.0,96002.0,0.0004262]
[1739977154453,0.38768969,96006.0,96005.0,0.0054254]
[1739977154873,0.84860969,96006.0,96005.0,0.0004254]
[1739977155075,0.84860969,96006.0,96005.0,0.0044254]
[1739977155076,1.29449669,96006.0,96005.0,0.0044254]
[1739977155287,1.29843469,96006.0,96005.0,0.0024254]
[1739977155498,1.26182369,96006.0,96005.0,0.0024254]
[1739977155700,1.26182369,96006.0,96005.0,0.0006765]
[1739977155905,0.15,96005.0,96002.0,0.0004262]
[1739977156118,0.306245,96003.0,96002.0,0.0004262]
[1739977156318,0.31963883,96003.0,96002.0,0.0004262]
[1739977156551,0.33596511,96003.0,96002.0,0.0004262]
[1739977156750,0.306248,96001.0,96000.0,0.1094944]
[1739977157050,0.31975033,96001.0,96000.0,0.1094944]
[1739977157853,0.31975033,96001.0,95988.0,0.00656742]
[1739977157854,0.306267,95989.0,95988.0,0.00656742]
[1739977158028,0.32042044,95989.0,95988.0,0.00656742]
[1739977158619,0.6609485,95989.0,95988.0,0.00656742]
[1739977159048,1.1240485,95989.0,95988.0,0.00656742]
[1739977159281,1.1105645,95989.0,95988.0,0.004]
[1739977159611,1.1105645,95989.0,95988.0,0.002]
[1739977159612,0.6609485,95989.0,95988.0,0.002]
[1739977159790,1.05259722,95989.0,95988.0,0.002]
[1739977160217,0.68023822,95989.0,95988.0,0.002]
[1739977160432,0.68023822,95989.0,95957.0,0.0807]
[1739977160433,0.15,95988.0,95957.0,0.0807]
[1739977160638,0.30628,95981.0,95957.0,0.0807]
[1739977161410,0.32857058,95981.0,95957.0,0.0807]
[1739977162050,0.32857058,95981.0,95980.0,0.00212069]
[1739977162253,0.3478603,95981.0,95980.0,0.00212069]
[1739977162476,0.3478603,95981.0,95980.0,0.00412069]
[1739977163227,0.3478603,95981.0,95980.0,1e-08]
[1739977163438,0.33327269,95981.0,95980.0,1e-08]
[1739977164843,0.31398297,95981.0,95980.0,1e-08]
[1739977165894,0.15,95981.0,95980.0,1e-08]
[1739977166092,0.15631,95963.0,95962.0,7e-05]
[1739977166305,0.30631,95963.0,95962.0,7e-05]
[1739977166501,0.30631,95963.0,95942.0,0.078]
[1739977166502,0.15,95962.0,95942.0,0.078]
[1739977166747,0.33927614,95980.0,95944.0,0.00104217]
[1739977166748,0.15,95978.0,95944.0,0.00104217]
[1739977166911,0.01633176,95963.0,95942.0,0.078]
[1739977167115,0.15,95951.0,95942.0,0.078]
[1739977167965,0.15,95947.0,95942.0,0.078]
[1739977168166,0.15,95947.0,95943.0,0.0014253]
[1739977168369,0.306341,95944.0,95943.0,0.0014253]
[1739977168566,0.306341,95944.0,95943.0,0.0054253]
[1739977168972,0.306341,95944.0,95943.0,0.0034253]
[1739977169148,0.32951605,95944.0,95943.0,0.0034253]
[1739977169908,0.32951605,95944.0,95943.0,0.0094253]
[1739977170316,0.32951605,95944.0,95943.0,0.0064253]
[1739977170317,0.40435746,95944.0,95943.0,0.0064253]
[1739977170479,0.34611263,95944.0,95943.0,0.0064253]
[1739977170680,0.34711263,95944.0,95943.0,0.0074253]
[1739977170999,0.36244747,95944.0,95943.0,0.0004253]
[1739977171225,0.15,95943.0,95906.0,0.0784]
[1739977171427,0.09150426,95942.0,95907.0,0.10250365]
[1739977171625,0.15,95924.0,95907.0,0.10250365]
[1739977172106,0.00077817,95933.0,95900.0,0.001]
[1739977172331,0.0163398,95920.0,95900.0,0.001]
[1739977172565,0.15,95918.0,95900.0,0.001]
[1739977172997,0.0163398,95920.0,95900.0,0.001]
[1739977173220,0.1663398,95920.0,95900.0,0.001]
[1739977173425,0.04976728,95917.0,95905.0,0.0758]
[1739977173641,0.04976728,95917.0,95906.0,0.00078592]
[1739977173847,0.04976728,95917.0,95907.0,0.10250365]
[1739977174062,0.04976728,95917.0,95907.0,0.10450365]
[1739977174271,0.156387,95916.0,95907.0,0.10450365]
[1739977174497,0.156392,95913.0,95907.0,0.10450365]
[1739977174673,0.25828228,95917.0,95904.0,0.0004251]
[1739977174674,0.04976728,95917.0,95904.0,0.0004251]
[1739977174880,0.15,95908.0,95904.0,0.0004251]
[1739977175108,0.15,95908.0,95907.0,0.001]
[1739977175109,0.156399,95908.0,95907.0,0.001]
[1739977175288,0.156399,95908.0,95906.0,0.002]
[1739977175525,0.15,95905.0,95904.0,0.0004251]
[1739977176377,0.16914027,95905.0,95904.0,0.0004251]
[1739977176585,0.01914027,95905.0,95904.0,0.0004251]
[1739977177149,0.16914027,95905.0,95904.0,0.0004251]
[1739977177372,0.17014027,95905.0,95904.0,0.0024251]
[1739977177995,0.17014027,95905.0,95904.0,0.0004251]
[1739977177996,0.32554427,95905.0,95904.0,0.0004251]
[1739977178203,0.78209467,95905.0,95904.0,0.0024251]
[1739977178407,0.156409,95902.0,95901.0,0.37065201]
[1739977178617,1.11552891,95902.0,95901.0,0.306311]
[1739977178818,0.4742,95902.0,95901.0,0.29800883]
[1739977179020,0.4742,95902.0,95901.0,0.306311]
[1739977179270,0.15,95902.0,95901.0,0.306311]
[1739977179444,0.16914027,95902.0,95901.0,0.306311]
[1739977179645,0.02314027,95902.0,95901.0,0.40881465]
[1739977180044,0.01914027,95902.0,95901.0,0.40881465]
[1739977180254,0.01914027,95902.0,95901.0,0.49061465]
[1739977180477,0.01914027,95916.0,95901.0,0.49061465]
[1739977180725,0.01914027,95916.0,95913.0,0.33366526]
[1739977180906,0.01914027,95916.0,95915.0,0.0751]
[1739977181118,0.01914027,95916.0,95915.0,0.17760365]
[1739977181319,0.01914027,95916.0,95915.0,0.18588093]
[1739977182307,0.02014027,95916.0,95915.0,0.18588093]
[1739977182508,0.002,95916.0,95915.0,0.24876415]
[1739977182730,0.002,95916.0,95915.0,0.24772178]
[1739977182940,0.001,95916.0,95915.0,0.40410978]
[1739977183140,0.3242,95967.0,95924.0,0.01454085]
[1739977183340,0.156315,95960.0,95930.0,0.45371641]
[1739977183517,0.3242,95967.0,95931.0,0.10354585]
[1739977183719,0.156322,95956.0,95931.0,0.1107525]
[1739977184130,0.208436,95953.0,95931.0,0.1107525]
[1739977184348,0.15,95942.0,95932.0,0.00888]
[1739977184550,0.15,95942.0,95933.0,0.10250365]
[1739977184749,0.15,95942.0,95933.0,0.11074894]
[1739977184949,0.16922683,95942.0,95933.0,0.11074894]
[1739977185155,0.16922683,95942.0,95933.0,0.10974894]
[1739977185355,0.01922683,95942.0,95933.0,0.10150365]
[1739977185781,0.01922683,95942.0,95934.0,0.00824352]
[1739977186127,0.01922683,95942.0,95935.0,0.10250365]
[1739977186333,0.01922683,95942.0,95934.0,0.00824352]